bitfinex-derivatives/quotes_SOLF0:USTF0_20251107
["timestamp","ask_amount","ask_price","bid_price","bid_amount"]
[1762541234357,0.04668255,162.38,162.35,0.04203528]
[1762541234664,0.04668255,162.38,162.35,3.03203528]
[1762541235058,3.16668255,162.38,162.35,0.04203528]
[1762541235455,3.16668255,162.38,162.28,2.99]
[1762541235762,3.12,162.33,162.24,2.99]
[1762541236160,3.12,162.33,162.24,8.5408]
[1762541236660,0.03997539,162.3,162.27,0.04495273]
[1762541237367,3.15997539,162.3,162.27,0.04495273]
[1762541238061,0.03997539,162.3,162.27,3.03495273]
[1762541238661,0.03997539,162.3,162.27,0.04495273]
[1762541238862,0.03997539,162.3,162.27,3.03495273]
[1762541239661,0.03997539,162.3,162.27,0.04495273]
[1762541239962,3.15997539,162.3,162.27,0.04495273]
[1762541242065,0.03997539,162.3,162.27,0.04495273]
[1762541242569,3.15997539,162.3,162.27,0.04495273]
[1762541244574,8.70897539,162.3,162.27,0.04495273]
[1762541244767,3.12,162.29,162.27,0.04495273]
[1762541245369,3.12,162.28,162.27,0.04495273]
[1762541245966,7.99781003,162.28,162.27,0.04495273]
[1762541246170,3.12,162.28,162.27,0.04495273]
[1762541247378,3.15997539,162.3,162.27,0.04495273]
[1762541248374,3.12,162.28,162.27,0.04495273]
[1762541248677,8.0024987,162.28,162.27,0.04495273]
[1762541248878,9.2424987,162.28,162.18,125.22]
[1762541249077,8.0024987,162.27,162.17,2.99]
[1762541249279,8.6698,162.27,162.19,5.5523]
[1762541249481,3.12,162.25,162.17,2.99]
[1762541249872,3.12,162.23,162.14,5.554]
[1762541250073,3.16617692,162.23,162.19,0.04163372]
[1762541252477,2.86,162.21,162.19,0.04163372]
[1762541252683,5.5537,162.16,162.1,2.91]
[1762541252982,2.86,162.17,162.1,2.91]
[1762541253182,8.4134,162.17,162.1,2.91]
[1762541253880,0.04038867,162.15,162.12,2.95374751]
[1762541254085,0.04050566,162.15,162.12,2.95692233]
[1762541254785,0.04050566,162.15,162.12,0.04692233]
[1762541255075,0.04050566,162.15,162.12,2.95692233]
[1762541257481,4.98154342,162.21,162.14,2.91]
[1762541257683,2.86,162.22,162.14,2.91]
[1762541257983,4.98163581,162.21,162.14,2.91]
[1762541258285,2.86,162.22,162.14,2.91]
[1762541258488,2.90585085,162.2,162.16,0.04694119]
[1762541258784,7.84497941,162.19,162.16,0.04694119]
[1762541258984,2.86,162.18,162.16,0.04694119]
[1762541259686,2.86,162.16,162.08,2.91]
[1762541259880,2.86,162.16,162.1,5.5555]
[1762541260083,8.4141,162.15,162.08,2.91]
[1762541260287,4.99141657,162.14,162.08,8.4661]
[1762541260486,2.86,162.15,162.08,2.91]
[1762541260679,0.04015293,162.13,162.1,0.04448243]
[1762541261683,3.10015293,162.13,162.1,0.04448243]
[1762541264093,0.04015293,162.13,162.1,0.04448243]
[1762541264882,0.04015293,162.13,162.1,5.59998243]
[1762541265087,0.04015293,162.13,162.1,8.74998243]
[1762541265892,0.04015293,162.13,162.1,5.59998243]
[1762541266389,3.10015293,162.13,162.1,0.04448243]
[1762541266986,8.65485293,162.13,162.1,0.04448243]
[1762541267185,3.10015293,162.13,162.1,0.04448243]
[1762541268088,3.06,162.11,162.1,0.04448243]
[1762541268997,0.04015293,162.13,162.02,3.15]
[1762541268998,8.616,162.1,162.02,3.15]
[1762541269196,3.06,162.1,162.03,5.5579]
[1762541269600,3.06,162.1,162.02,3.15]
[1762541269803,3.06,162.16,162.06,3.15]
[1762541269996,3.10696061,162.13,162.09,0.04218295]
[1762541271191,3.06,162.12,162.09,0.04218295]
[1762541271997,3.06,162.11,162.09,0.04218295]
[1762541273500,3.06,162.1,162.09,0.04218295]
[1762541275098,3.06,162.12,162.09,0.04218295]
[1762541276105,3.06,162.11,162.09,0.04218295]
[1762541277301,8.6155,162.11,162.09,0.04218295]
[1762541277600,3.06,162.1,162.09,0.04218295]
[1762541280212,3.06,162.12,162.09,0.04218295]
[1762541280407,4.98786059,162.11,162.09,0.04218295]
[1762541280602,8.6151,162.12,162.09,0.04218295]
[1762541280901,3.06,162.1,162.09,0.04218295]
[1762541281103,8.04785958,162.1,162.09,0.04218295]
[1762541282305,8.04785958,162.1,162.02,5.5583]
[1762541282306,5.5564,162.08,162.02,5.5583]
[1762541282510,8.6964,162.08,162.02,5.5583]
[1762541283302,8.13277955,162.07,162.0,71.6489]
[1762541283499,8.1802115,162.06,162.02,0.04159284]
[1762541283705,3.14,162.04,162.02,0.04159284]
[1762541284402,4.99247736,162.03,162.02,0.04159284]
[1762541285606,0.0469685,162.06,162.02,4.15159284]
[1762541285801,0.0469685,162.06,162.02,2.91159284]
[1762541286007,3.1869685,162.06,162.02,0.04159284]
[1762541286512,4.99857518,162.05,162.02,0.04159284]
[1762541286806,4.99857518,162.04,162.02,0.04159284]
[1762541286999,0.0469685,162.06,162.02,6.33911734]
[1762541287202,0.0469685,162.06,162.03,2.87]
[1762541287403,0.0469685,162.06,162.04,8.4276]
[1762541287600,0.0469685,162.06,162.04,2.87]
[1762541287805,0.0469685,162.06,162.04,8.4276]
[1762541288305,3.1869685,162.06,162.02,2.91159284]
[1762541288512,4.9761143,162.05,162.02,2.91159284]
[1762541288701,0.0469685,162.06,162.02,2.91159284]
[1762541288902,4.97624486,162.05,162.02,2.91159284]
[1762541289112,4.97624486,162.04,162.02,2.91159284]
[1762541289408,4.97913451,162.03,162.02,0.04159284]
[1762541290107,3.1869685,162.06,162.02,0.04159284]
[1762541290303,4.9609693,162.05,162.02,0.04159284]
[1762541290510,4.9609693,162.04,162.02,0.04159284]
[1762541290710,0.0469685,162.06,162.02,2.91159284]
[1762541290906,4.96308722,162.05,162.03,2.87]
[1762541291109,4.96308722,162.04,162.02,0.04159284]
[1762541291306,0.0469685,162.06,162.02,2.91159284]
[1762541291514,0.0469685,162.06,162.05,2.87]
[1762541294417,0.0469685,162.06,162.05,4.11]
[1762541294610,6.33,162.08,162.07,2.87]
[1762541295315,3.14,162.13,162.07,2.87]
[1762541295610,3.14,162.11,162.08,0.03938027]
[1762541295818,8.03447517,162.1,162.08,0.03938027]
[1762541296113,3.14,162.1,162.08,0.03938027]
[1762541296302,4.89742739,162.09,162.08,0.03938027]
[1762541296707,3.1819093,162.12,162.08,0.03938027]
[1762541296905,8.03736336,162.11,162.08,0.03938027]
[1762541297108,8.03736336,162.1,162.08,0.03938027]
[1762541297310,4.90029483,162.09,162.08,0.03938027]
[1762541298517,3.14,162.11,162.08,0.03938027]
[1762541298714,8.04115622,162.1,162.08,0.03938027]
[1762541299016,5.7719093,162.12,162.08,2.90938027]
[1762541299217,4.90107263,162.11,162.08,2.90938027]
[1762541299412,5.7719093,162.12,162.08,2.90938027]
[1762541299618,5.7719093,162.12,162.1,5.5556]
[1762541300008,5.7719093,162.12,162.08,2.90938027]
[1762541300416,8.9119093,162.12,162.08,2.90938027]
[1762541300719,3.14,162.1,162.08,0.03938027]
[1762541301018,4.90285912,162.09,162.08,0.03938027]
[1762541301323,8.9119093,162.12,162.08,2.90938027]
[1762541301520,8.9119093,162.12,162.08,0.03938027]
[1762541301819,5.7719093,162.12,162.08,2.90938027]
[1762541302216,5.7719093,162.12,162.09,8.4259]
[1762541303115,5.7719093,162.12,162.1,5.5555]
[1762541303518,5.7719093,162.12,162.09,2.87]
[1762541303716,5.7719093,162.12,162.08,0.03938027]
[1762541303717,8.0490224,162.11,162.08,0.03938027]
[1762541303913,8.04932132,162.1,162.08,0.03938027]
[1762541304114,3.14,162.09,162.08,0.03938027]
[1762541304317,8.04974455,162.09,162.08,0.03938027]
[1762541305315,3.14,162.09,162.08,0.03938027]
[1762541308220,8.6969,162.07,161.98,2.87]
[1762541308424,3.14,162.06,161.98,2.87]
[1762541308724,3.14,162.06,162.0,8.4287]
[1762541309115,3.14,162.06,162.0,2.87]
[1762541309319,3.18394215,162.05,162.01,0.04651062]
[1762541309516,3.18394215,162.05,162.01,0.04458474]
[1762541311224,3.14,162.03,162.01,0.04458474]
[1762541311428,8.05651,162.02,162.01,0.04458474]
[1762541311720,0.04394215,162.05,162.01,0.04458474]
[1762541311929,0.04394215,162.05,162.01,2.91458474]
[1762541312121,0.04394215,162.05,162.02,8.6182]
[1762541313022,0.04394215,162.05,162.02,3.06]
[1762541314217,2.94394215,162.05,162.01,3.10458474]
[1762541314419,0.04394215,162.05,162.01,3.10458474]
[1762541314718,2.9,162.11,162.02,3.06]
[1762541314917,2.9,162.11,162.06,3.06]
[1762541315427,5.73,162.12,162.08,8.6161]
[1762541315723,5.77527476,162.12,162.09,3.06]
[1762541316023,5.77527476,162.12,162.11,3.06]
[1762541316226,2.9,162.19,162.11,3.06]
[1762541316426,2.9,162.19,162.14,5.5539]
[1762541316626,2.9,162.22,162.15,3.06]
[1762541316824,4.90933975,162.21,162.15,3.06]
[1762541317026,2.9,162.22,162.15,3.06]
[1762541317228,5.5509,162.24,162.17,0.03965028]
[1762541317229,2.94354357,162.2,162.17,0.03965028]
[1762541317424,0.04354357,162.2,162.17,0.03965028]
[1762541317629,0.04354357,162.2,162.17,3.09965028]
[1762541318144,0.04354357,162.2,162.17,0.03965028]
[1762541318637,2.94354357,162.2,162.17,0.03965028]
[1762541321432,3.03,162.19,162.07,2.91]
[1762541321838,3.03,162.16,162.07,2.91]
[1762541322433,3.03,162.12,162.1,0.03998887]
[1762541322633,3.0722254,162.13,162.1,0.03998887]
[1762541324236,0.0422254,162.13,162.1,2.94998887]
[1762541325842,3.0722254,162.13,162.1,0.03998887]
[1762541326046,0.0422254,162.13,162.1,2.94998887]
[1762541326540,0.0422254,162.13,162.11,2.91]
[1762541327235,0.0422254,162.13,162.11,8.4649]
[1762541327429,0.0422254,162.13,162.12,2.91]
[1762541330040,3.03,162.2,162.12,2.91]
[1762541331034,3.07194312,162.18,162.14,0.04003641]
[1762541331643,0.04194312,162.18,162.14,2.95003641]
[1762541332949,3.07194312,162.18,162.14,0.04003641]
[1762541333841,3.03,162.16,162.14,0.04003641]
[1762541334048,3.03,162.14,162.05,2.91]
[1762541334244,5.5553,162.11,162.05,2.91]
[1762541334443,3.03,162.14,162.05,2.91]
[1762541334837,5.5553,162.11,162.05,2.91]
[1762541335043,3.07250993,162.1,162.06,0.04716392]
[1762541335545,8.62810993,162.1,162.06,0.04716392]
[1762541335746,3.03,162.09,162.06,0.04716392]
[1762541336746,3.03,162.07,161.98,2.91]
[1762541337138,5.5572,162.05,161.98,8.4694]
[1762541337735,0.04448028,162.03,162.0,0.04135879]
[1762541338045,3.07448028,162.03,162.0,0.04135879]
[1762541342341,0.04448028,162.03,162.0,3.08135879]
[1762541342549,3.0,162.11,162.0,1.28135879]
[1762541342740,3.0,162.09,161.97,5.5598]
[1762541342935,4.82555456,162.08,161.97,5.5598]
[1762541343139,3.0,162.05,161.97,5.5598]
[1762541343341,3.0,162.05,161.95,3.04]
[1762541343546,3.0,162.02,161.99,0.04503085]
[1762541343746,3.0436764,162.02,161.99,0.04503085]
[1762541345343,3.0,162.0,161.89,3.04]
[1762541345744,5.70765169,162.03,161.9,5.5622]
[1762541345745,3.0,161.97,161.9,5.5622]
[1762541345943,3.0,161.97,161.89,3.04]
[1762541346348,3.04024202,161.95,161.91,3.08173169]
[1762541346551,3.0,161.95,161.9,5.5622]
[1762541346745,3.04497565,161.95,161.91,3.08309465]
[1762541346945,3.04497565,161.95,161.92,5.5615]
[1762541347142,0.04497565,161.95,161.92,5.5615]
[1762541347446,0.04497565,161.95,161.93,3.04]
[1762541347643,0.04497565,161.95,161.92,5.5615]
[1762541347846,0.04497565,161.95,161.93,5.5612]
[1762541348046,0.04497565,161.95,161.92,3.04]
[1762541348453,0.04497565,161.95,161.93,8.6011]
[1762541348847,0.04497565,161.95,161.94,3.04]
[1762541349658,3.0,162.03,161.97,5.5598]
[1762541349950,3.0,162.03,161.94,3.04]
[1762541350353,3.0,162.03,161.95,3.04]
[1762541350653,0.04441996,162.01,161.97,3.08180761]
[1762541350850,0.04441996,162.01,161.98,5.5594]
[1762541351047,3.04441996,162.01,161.97,3.08180761]
[1762541351243,0.04441996,162.01,161.98,5.5595]
[1762541351448,0.04441996,162.01,161.98,8.5995]
[1762541351851,0.04441996,162.01,161.99,5.5591]
[1762541352254,3.04441996,162.01,161.97,0.04180761]
[1762541354257,3.0,162.0,161.97,0.04180761]
[1762541355252,0.04441996,162.01,161.97,8.64150761]
[1762541355652,3.04441996,162.01,161.97,5.60150761]
[1762541356760,3.04441996,162.01,161.98,5.5594]
[1762541357359,3.04441996,162.01,161.97,0.04180761]
[1762541357958,3.04441996,162.01,161.9,3.04]
[1762541357959,3.0,161.98,161.86,3.04]
[1762541358661,3.0,161.97,161.89,5.5625]
[1762541358957,3.0466622,161.95,161.91,0.04746746]
[1762541359159,3.0466622,161.95,161.91,0.03911487]
[1762541359354,8.6074622,161.95,161.91,0.03911487]
[1762541359555,3.0466622,161.95,161.91,0.03911487]
[1762541359753,3.0466622,161.95,161.77,29.6531]
[1762541359754,3.0466622,161.95,161.82,3.04]
[1762541359961,3.0,161.95,161.82,3.04]
[1762541360260,3.0,161.91,161.83,66.24]
[1762541360659,8.5622,161.91,161.83,3.04]
[1762541360857,3.0,161.88,161.85,0.04469177]
[1762541361158,3.0,161.88,161.86,3.04]
[1762541361159,0.04082075,161.88,161.86,3.04]
[1762541361461,0.04082075,161.88,161.85,3.08592499]
[1762541361762,0.04082075,161.88,161.85,8.64982499]
[1762541362364,0.04082075,161.88,161.85,3.08592499]
[1762541364258,0.04082075,161.88,161.85,0.04592499]
[1762541364470,3.04082075,161.88,161.85,0.04592499]
[1762541364665,0.04082075,161.88,161.85,0.04592499]
[1762541364958,0.04082075,161.88,161.85,3.08592499]
[1762541365957,0.04082075,161.88,161.87,3.04]
[1762541366156,4.22,161.93,161.87,3.04]
[1762541366360,4.22,161.93,161.88,3.04]
[1762541366566,4.22,161.93,161.92,3.04]
[1762541367259,4.22,161.93,161.91,0.03941248]
[1762541368768,4.22,161.93,161.91,3.07941248]
[1762541368965,4.22,161.93,161.91,0.03941248]
[1762541369269,7.22,161.93,161.91,0.03941248]
[1762541369660,4.22,161.93,161.91,0.03941248]
[1762541369860,3.0,161.92,161.91,0.03941248]
[1762541370066,4.22,161.93,161.91,0.03941248]
[1762541370767,4.22,161.93,161.91,3.07941248]
[1762541370968,4.22,161.93,161.91,0.03941248]
[1762541371358,3.0,161.92,161.91,0.03941248]
[1762541373964,4.22,161.93,161.91,0.03941248]
[1762541374160,3.1,161.92,161.91,0.03941248]
[1762541375268,7.32,161.93,161.91,0.03941248]
[1762541375663,3.1,161.92,161.91,0.03941248]
[1762541375864,3.1,161.92,161.82,3.14]
[1762541376170,3.1,161.9,161.83,5.5646]
[1762541376361,3.1,161.9,161.82,3.14]
[1762541376759,3.14110424,161.88,161.84,0.04683198]
[1762541376964,0.04110424,161.88,161.84,3.18683198]
[1762541377165,3.14110424,161.88,161.84,0.04683198]
[1762541377967,0.04110424,161.88,161.84,3.18683198]
[1762541378668,0.04110424,161.88,161.85,8.7039]
[1762541378871,0.04110424,161.88,161.86,3.14]
[1762541379569,0.04110424,161.88,161.87,3.14]
[1762541380271,0.04110424,161.88,161.84,5.61103198]
[1762541380567,0.04110424,161.88,161.84,0.04683198]
[1762541380769,0.04110424,161.88,161.84,2.92683198]
[1762541381365,2.97110424,161.88,161.84,5.61113198]
[1762541381670,0.04110424,161.88,161.84,8.49113198]
[1762541382168,0.04110424,161.88,161.85,5.564]
[1762541382871,0.04110424,161.88,161.87,2.88]
[1762541383365,0.04110424,161.88,161.86,8.4435]
[1762541383557,0.04110424,161.88,161.87,2.88]
[1762541384573,0.04110424,161.88,161.87,4.12]
[1762541384770,6.22,162.03,161.9,2.88]
[1762541385069,6.22,162.03,161.98,2.88]
[1762541385267,6.22,162.03,162.02,2.88]
[1762541385973,0.0426932,162.04,162.02,2.88]
[1762541386173,0.04451542,162.05,162.02,2.88]
[1762541386474,0.04451542,162.05,162.02,2.92480535]
[1762541386666,0.04451542,162.05,162.02,0.04480535]
[1762541386970,0.04451542,162.05,162.02,3.16480535]
[1762541388265,2.93,162.1,162.02,3.16480535]
[1762541388473,3.06,162.14,162.05,8.76954695]
[1762541388883,3.06,162.14,162.05,14.32644695]
[1762541389071,3.06,162.14,162.05,8.76954695]
[1762541389377,0.04185168,162.11,162.08,0.04486895]
[1762541390176,3.10185168,162.11,162.08,0.04486895]
[1762541390971,3.10185168,162.11,162.01,8.76954695]
[1762541391268,3.06,162.09,162.01,8.76954695]
[1762541391472,3.06,162.09,162.01,11.88954695]
[1762541391975,0.04547854,162.07,162.03,3.1589417]
[1762541393972,0.04547854,162.07,162.05,11.88954695]
[1762541394175,3.06,162.13,162.06,3.12]
[1762541394575,3.06,162.13,162.06,8.6766]
[1762541394971,3.06,162.13,162.05,8.76954695]
[1762541395178,3.10571603,162.11,162.07,0.04169768]
[1762541397777,0.04571603,162.11,162.07,3.16169768]
[1762541398278,3.10571603,162.11,162.07,0.04169768]
[1762541400870,3.06,162.09,162.07,0.04169768]
[1762541402083,2.88,162.08,162.07,0.04169768]
[1762541402281,2.88,162.08,161.99,5.5592]
[1762541402478,2.88,162.08,161.98,3.12]
[1762541402679,2.88,162.08,161.96,26.95163912]
[1762541402680,2.88,162.08,162.0,11.62954695]
[1762541402881,2.88,162.08,162.0,8.76954695]
[1762541403079,2.88,162.05,161.96,20.62954695]
[1762541403283,2.88,162.05,161.96,8.76954695]
[1762541403484,86.3966,162.15,161.99,0.04066443]
[1762541403485,2.88,162.01,161.99,0.04066443]
[1762541403788,2.88,162.01,161.98,0.04637007]
[1762541404088,2.92289096,162.01,161.98,0.04637007]
[1762541405490,2.88,161.99,161.98,0.04637007]
[1762541405995,2.88,161.99,161.92,8.76954695]
[1762541406295,2.88,161.99,161.89,2.86]
[1762541406693,5.5604,161.96,161.89,2.86]
[1762541406900,8.4404,161.96,161.89,2.86]
[1762541407092,0.04349967,161.94,161.91,0.04037008]
[1762541407289,2.92349967,161.94,161.91,0.04037008]
[1762541410298,2.88,161.92,161.81,11.62954695]
[1762541410499,2.88,161.92,161.82,2.86]
[1762541411394,4.50440955,161.97,161.85,0.03984074]
[1762541411395,2.88,161.88,161.85,0.03984074]
[1762541411693,2.92191023,161.88,161.85,0.03928404]
[1762541412199,0.04191023,161.88,161.85,0.03928404]
[1762541413196,2.92191023,161.88,161.85,0.03928404]
[1762541416597,2.88,161.87,161.85,0.03928404]
[1762541417605,2.92191023,161.88,161.85,0.03928404]
[1762541419805,8.48511023,161.88,161.85,0.03928404]
[1762541420002,2.88,161.87,161.85,0.03928404]
[1762541422899,0.04191023,161.88,161.85,2.89928404]
[1762541423102,0.04191023,161.88,161.85,11.66883099]
[1762541423601,0.04191023,161.88,161.85,0.03928404]
[1762541423602,2.92191023,161.88,161.85,0.03928404]
[1762541424204,8.48521023,161.88,161.85,0.03928404]
[1762541424405,2.92191023,161.88,161.85,0.03928404]
[1762541425407,5.5637,161.87,161.85,0.03928404]
[1762541425608,0.04191023,161.88,161.7,5.72433896]
[1762541425609,1.24,161.86,161.77,5.72433896]
[1762541425907,5.5654,161.82,161.74,5.72433896]
[1762541426107,2.88,161.81,161.71,8.58433896]
[1762541426406,2.88,161.81,161.69,5.72433896]
[1762541426610,5.72433896,161.85,161.67,2.86]
[1762541426611,2.88,161.75,161.67,2.86]
[1762541426907,2.88,161.75,161.66,5.72433896]
[1762541427208,2.91987899,161.73,161.64,2.86]
[1762541427415,2.91987899,161.73,161.65,8.58433896]
[1762541427602,2.88,161.77,161.69,2.86]
[1762541427809,2.88,161.77,161.71,5.72433896]
[1762541428009,0.03987435,161.75,161.72,2.86]
[1762541428205,0.04035106,161.75,161.72,2.86]
[1762541428405,0.04035106,161.75,161.72,8.58433896]
[1762541428813,0.04035106,161.75,161.72,5.72433896]
[1762541429009,2.92035106,161.75,161.72,5.72433896]
[1762541429212,2.92035106,161.75,161.69,5.72433896]
[1762541429511,2.92035106,161.75,161.66,11.29493896]
[1762541429711,0.04672735,161.72,161.66,5.72433896]
[1762541429916,0.04672735,161.72,161.67,2.86]
[1762541430111,0.04672735,161.72,161.68,2.86]
[1762541430413,0.04672735,161.72,161.66,5.72433896]
[1762541430604,0.04672735,161.72,161.66,11.29493896]
[1762541430806,0.04672735,161.72,161.67,2.86]
[1762541431010,0.04672735,161.72,161.69,5.72433896]
[1762541431214,0.04672735,161.72,161.71,2.86]
[1762541431712,0.04672735,161.72,161.68,5.57]
[1762541431918,0.04672735,161.72,161.69,2.86]
[1762541432412,2.88,161.79,161.72,3.01]
[1762541433206,2.88,161.79,161.65,62.0]
[1762541433207,3.04,161.84,161.74,8.73433896]
[1762541433412,3.04,161.84,161.77,0.04211276]
[1762541433413,0.04208984,161.81,161.77,0.04211276]
[1762541433715,0.04208984,161.81,161.77,8.77645172]
[1762541434517,0.04208984,161.81,161.78,3.01]
[1762541434913,3.04,161.89,161.8,14.30033896]
[1762541435822,0.04183342,161.86,161.83,3.05135307]
[1762541436522,0.04183342,161.86,161.84,3.01]
[1762541437119,5.29,161.88,161.85,3.01]
[1762541437120,4.67072047,161.88,161.85,3.01]
[1762541437321,4.67072047,161.88,161.87,3.01]
[1762541439315,4.67072047,161.88,161.86,5.5637]
[1762541439511,4.67072047,161.88,161.86,8.5737]
[1762541440118,4.67072047,161.88,161.87,3.01]
[1762541440816,0.04243302,161.89,161.88,5.5632]
[1762541441021,3.85,161.94,161.89,3.02]
[1762541441224,3.85,161.94,161.92,3.02]
[1762541441823,3.85,161.94,161.91,5.72433896]
[1762541442119,3.89720522,161.94,161.91,5.76689753]
[1762541442322,6.91720522,161.94,161.91,0.04255857]
[1762541442515,6.91720522,161.94,161.84,3.02]
[1762541442516,3.02,161.93,161.84,3.02]
[1762541443125,3.02,161.93,161.84,8.5843]
[1762541443320,3.85,161.94,161.87,3.02]
[1762541443517,0.04384989,161.92,161.89,3.06734684]
[1762541443716,0.04384989,161.92,161.9,3.02]
[1762541444426,3.85,161.94,161.92,8.5818]
[1762541444628,3.85,161.94,161.93,3.02]
[1762541444928,5.51,161.99,161.93,3.02]
[1762541445225,5.51,161.99,161.94,3.02]
[1762541445430,0.04095685,161.98,161.95,3.06106229]
[1762541445728,0.04095685,161.98,161.96,3.02]
[1762541445927,5.51,161.99,161.96,3.02]
[1762541446826,3.02,161.98,161.95,0.04106229]
[1762541447222,5.55531202,161.99,161.95,0.04106229]
[1762541447926,8.57531202,161.99,161.95,0.04106229]
[1762541448423,5.55531202,161.99,161.95,3.06106229]
[1762541449833,8.57531202,161.99,161.95,0.04106229]
[1762541450929,3.02,161.98,161.95,0.04106229]
[1762541451428,3.02,161.97,161.88,18.63235729]
[1762541451637,3.02,161.97,161.87,3.02]
[1762541452131,8.5807,161.96,161.87,8.5834]
[1762541452430,3.02,161.95,161.87,3.02]
[1762541452630,0.04101616,161.93,161.9,0.04057005]
[1762541453131,3.06101616,161.93,161.9,0.04057005]
[1762541453834,3.02,161.92,161.9,0.04057005]
[1762541454132,0.04101616,161.93,161.9,0.04057005]
[1762541454331,3.06101616,161.93,161.9,0.04057005]
[1762541455326,3.02,161.92,161.9,0.04057005]
[1762541456442,0.04101616,161.93,161.9,0.04057005]
[1762541456734,3.06101616,161.93,161.9,0.04057005]
[1762541457330,3.06101616,161.93,161.85,8.5842]
[1762541457532,3.06101616,161.93,161.85,5.5642]
[1762541457736,8.62281616,161.93,161.85,5.5642]
[1762541458333,8.62281616,161.93,161.87,0.04228381]
[1762541458534,3.02,161.89,161.87,0.04228381]
[1762541458935,0.04163909,161.9,161.87,0.04228381]
[1762541459431,0.04163909,161.9,161.87,3.06228381]
[1762541459837,0.04163909,161.9,161.87,8.62578381]
[1762541460032,0.04163909,161.9,161.88,3.02]
[1762541461023,5.51,161.99,161.88,9.8232]
[1762541461230,5.51,161.99,161.9,3.02]
[1762541461431,5.51,161.99,161.93,3.02]
[1762541461933,5.51,161.99,161.97,3.02]
[1762541462633,5.55,162.08,161.99,2.89]
[1762541463035,8.45,162.08,161.99,2.89]
[1762541463640,0.04001732,162.05,162.02,0.04178301]
[1762541463838,0.04001732,162.05,162.02,2.93178301]
[1762541464130,0.04001732,162.05,162.02,0.04178301]
[1762541464131,2.94001732,162.05,162.02,0.04178301]
[1762541464535,0.04001732,162.05,162.02,0.04178301]
[1762541465438,0.04001732,162.05,162.02,2.93178301]
[1762541465930,0.04001732,162.05,162.02,0.04178301]
[1762541466238,2.94001732,162.05,162.02,0.04178301]
[1762541466835,2.94001732,162.05,161.95,2.89]
[1762541467139,2.9,162.05,161.95,2.89]
[1762541467829,0.04569374,162.02,161.98,0.04404654]
[1762541468336,0.04569374,162.02,161.98,2.93404654]
[1762541469035,0.04569374,162.02,161.99,2.89]
[1762541469242,0.04569374,162.02,161.98,0.04404654]
[1762541469438,0.04569374,162.02,161.98,2.93404654]
[1762541469939,0.04569374,162.02,161.98,8.6583855]
[1762541470127,0.04569374,162.02,161.99,2.89]
[1762541470534,0.04569374,162.02,161.98,0.04404654]
[1762541471433,2.94569374,162.02,161.98,0.04404654]
[1762541472538,0.04569374,162.02,161.98,2.93404654]
[1762541472740,2.94569374,162.02,161.98,0.04404654]
[1762541474438,2.9,162.01,161.98,0.04404654]
[1762541474942,2.94569374,162.02,161.98,0.04404654]
[1762541477849,2.9,162.0,161.98,0.04404654]
[1762541478236,2.9,161.99,161.91,5.72433896]
[1762541478441,2.9,161.99,161.88,5.72433896]
[1762541478644,2.9,161.97,161.88,5.72433896]
[1762541479048,2.9,161.96,161.88,5.5631]
[1762541479241,0.04323534,161.94,161.88,5.5631]
[1762541479442,2.94323534,161.94,161.9,0.0452675]
[1762541480553,0.04323534,161.94,161.9,2.9352675]
[1762541480749,2.9,162.02,161.92,2.89]
[1762541480953,2.9,162.02,161.94,5.72433896]
[1762541481148,2.9,162.0,161.94,5.72433896]
[1762541481452,7.49526918,161.99,161.89,8.61433896]
[1762541481657,5.56,161.98,161.89,14.17723896]
[1762541481851,0.04171006,161.96,161.92,0.04694761]
[1762541482054,2.94171006,161.96,161.92,0.04694761]
[1762541482257,2.9,161.93,161.92,0.04694761]
[1762541482755,2.9,161.93,161.86,5.72433896]
[1762541483154,2.9,161.93,161.85,8.4542]
[1762541483555,2.94376106,161.91,161.87,0.0436271]
[1762541483757,2.94301599,161.91,161.87,0.04120639]
[1762541484363,8.4632,161.89,161.87,0.04120639]
[1762541484658,2.9,161.88,161.87,0.04120639]